Cogmind - Beta 16 @@@ ROGUE MODE // 2025.10.29 @ 16:43:52 Player: Parallel Result: Destroyed by D-53 Grenadier with Mini Grenade Launcher Performance ------------- Evolutions (0) 0 Regions Visited (2) 400 Robots Destroyed (32) 160 Value Destroyed (444) 444 Prototype IDs (0) 0 Alien Tech Used (0) 0 Bonus (0) 0 TOTAL SCORE: 1004 Bonus ------- None Cogmind --------- Core Integrity 0/250 Matter 266/300 Energy 99/100 System Corruption 9% Temperature Cool (0) Movement Rolling (200) Ox8 Location -10/Mines Parts ------- > --- POWER (1) -------- (None) > --- PROPULSION (2) --- Wheel > --- UTILITY (2) ------ Huge Storage Unit Signal Interpreter > --- WEAPON (2) ------- Mini Grenade Launcher Mace > --- INVENTORY (25) --- Ion Engine Light Ion Engine Wheel Wheel Structural Scanner Sensor Array Seismic Detector Field Recycling Unit (0) Particle Gun Particle Gun Autogun Autogun Rocket Launcher Rocket Launcher Mini Grenade Launcher Mining Laser Peak State ------------ > --- POWER ------------ Ion Engine > --- PROPULSION ------- Wheel Compact Wheel > --- UTILITY ---------- Huge Storage Unit Signal Interpreter > --- WEAPON ----------- Particle Gun Particle Gun > --- INVENTORY -------- Light Ion Engine Wheel Wheel Wheel Structural Scanner Sensor Array Seismic Detector Autogun Rocket Launcher Rocket Launcher Mini Grenade Launcher Mini Grenade Launcher Mining Laser Mace [Rating: 11] Favorites ----------- Power Ion Engine Engine Ion Engine Propulsion Wheel Wheel Wheel Utility Signal Interpreter Device Structural Scanner Storage Huge Storage Unit Processor Signal Interpreter Weapon Particle Gun Energy Gun Particle Gun Ballistic Gun Assault Rifle Launcher Mini Grenade Launcher Special Weapon Mining Laser Impact Weapon Mace Build | -11 -10 -10 ------- Run | Yrd Mat Min Slots Evolved . | . . . Power . | . . . Propulsion . | . . . Utility . | . . . Weapon . | . . . Parts Attached 27 | 8 18 1 Power 3 | 1 2 . Engine 3 | 1 2 . Core . | . . . Reactor . | . . . Propulsion 8 | 2 5 1 Treads . | . . . Leg . | . . . Wheel 8 | 2 5 1 Hover . | . . . Flight . | . . . Utility 6 | 2 4 . Device 3 | 1 2 . Storage 2 | 1 1 . Processor 1 | . 1 . Hackware . | . . . Protection . | . . . Artifact . | . . . Weapon 10 | 3 7 . Energy Gun 5 | 2 3 . Energy Cannon . | . . . Ballistic Gun 2 | 1 1 . Ballistic Cannon . | . . . Launcher 1 | . 1 . Special Weapon 1 | . 1 . Impact Weapon 1 | . 1 . Slashing Weapon . | . . . Piercing Weapon . | . . . Special Melee Weapon . | . . . Unidentified Prototypes . | . . . Corrupted Parts 1 | . 1 . System Corruption 5 | . 5 . Parts Lost 7 | . 4 3 Power 2 | . 1 1 Propulsion 5 | . 3 2 Utility . | . . . Weapon . | . . . Highest Loss Streak 3 | . 3 3 To Critical Strikes . | . . . Average Backups 10 | 2 11 16 Power 1 | . 1 2 Propulsion 2 | 1 2 2 Utility 2 | . 3 4 Weapon 4 | 1 4 8 Tool/Special . | . . . Unused Backups 8 | . 1 7 Power 2 | . . 2 Propulsion 1 | . 1 . Utility 1 | . . 1 Weapon 4 | . . 4 Tool/Special . | . . . Average Slot Usage (%) 98 | . 98 97 Engine 13 | . 14 11 Wheel 27 | . 27 28 Device 2 | . 2 . Storage 13 | . 13 14 Processor 11 | . 11 14 Energy Gun 14 | . 15 . Ballistic Gun 5 | . 5 . Launcher 1 | . . 14 Special Weapon 1 | . 1 . Impact Weapon 4 | . 4 14 Peak Build Rating 11 | 7 11 11 Average Rating 8 | 5 9 10 On Entrance 6 | . 7 11 Avg Prop Armor Cover (%) . | . . . Naked Turns . | . . . Heaviest Build 91 | 13 91 86 Greatest Support 26 | 26 26 20 Greatest Overweight (x) 8 | . 8 8 Average Overweight (x) 2 | . 2 4 Largest Inventory Capacity 25 | 8 25 25 Average Capacity 19 | 7 21 25 Most Carried 18 | 5 18 17 Average Carried 10 | 3 11 16 Final Capacity 25 | 8 25 25 Final Carried 17 | 5 17 16 Class Distribution -------------------- 100% | Mutant Dominant Class ---------------- Mutant | -10/Materials Mutant | -10/Mines Resources | -11 -10 -10 ----------- Run | Yrd Mat Min Matter Collected 692 | 298 394 . Remotely . | . . . Salvage Created 829 | 118 694 17 Parts 44 | 12 30 2 Haulers Intercepted . | . . . Recyclers Shooed . | . . . Parts Field Recycled . | . . . Retrieved Matter . | . . . Parts Self-Destructed . | . . . Prevented . | . . . Parts Restored . | . . . Kills | -11 -10 -10 ------- Run | Yrd Mat Min Combat Hostiles Destroyed 15 | . 14 1 Melee 2 | . 1 1 Guns 8 | . 8 . AOE 3 | . 3 . Classes Destroyed 9 | 2 6 1 Worker 1 | . 1 . Builder 4 | . 4 . Tunneler 5 | 3 1 1 Recycler 4 | 1 3 . Mechanic 1 | . 1 . Watcher 3 | . 3 . Swarmer 9 | . 9 . Grunt 5 | . 5 . Assembled 1 | . . 1 Best Kill Streak 5 | 2 5 2 Combat Bots Only 4 | . 4 1 Max Kills in Single Turn 3 | 1 3 1 Gunslinging 1 | . 1 . Exploded 3 | . 3 . Melee 1 | . 1 1 Uniques/NPCs Destroyed . | . . . Combat | -11 -10 -10 -------- Run | Yrd Mat Min Hostile Shots Fired 74 | . 54 20 Missed 14 | . 11 3 Hits 60 | . 43 17 Melee 2 | . . 2 Projectile 58 | . 43 15 AOE 9 | . . 9 Damage Taken 1131 | . 549 582 Core 275 | . 117 158 Absorbed by Shields . | . . . Core Remaining (%) 100 | 100 . . Volleys Fired 46 | 8 36 2 Largest 2 | 2 2 1 Hottest 140 | 100 140 30 Shots Fired 81 | 16 63 2 Gun 74 | 16 58 . Cannon . | . . . Launcher 3 | . 1 2 Special 4 | . 4 . Kinetic 19 | 6 13 . Thermal 50 | 10 40 . Explosive 3 | . 1 2 Electromagnetic 9 | . 9 . Robot Hit Streak 13 | 5 13 . Robot Miss Streak 5 | 2 5 1 Penetration Max . | . . . Secondary Targets 1 | . 1 . Max Gunslinging Chain 1 | . 1 . Shots Hit Robots 60 | 8 51 1 Core Hits 34 | 5 26 3 Critical Kills . | . . . Critical Parts Destroyed 2 | . 2 . Critical Strikes 6 | 1 5 . Burn 4 | 1 3 . Smash 2 | . 2 . Melee Attacks 21 | . 19 2 Impact 21 | . 19 2 Slashing . | . . . Piercing . | . . . Sneak Attacks 6 | . 6 . Combat Hostiles . | . . . Follow-up Attacks . | . . . Damage Inflicted 1810 | 98 1501 211 Guns 626 | 98 528 . Cannons . | . . . Explosions 460 | . 286 174 Melee 724 | . 687 37 Ramming . | . . . Kinetic 128 | 11 117 . Thermal 452 | 87 365 . Explosive 460 | . 286 174 Electromagnetic 46 | . 46 . Impact 724 | . 687 37 Slashing . | . . . Piercing . | . . . Highest Corruption 9 | . 9 9 Average Corruption 3 | . 3 9 Corruption Purged . | . . . Corruption Blocked . | . . . Effects 14 | . 13 1 Message Errors 2 | . 2 . Matter Fused 2 | . 2 . Heat Flow Errors 3 | . 3 . Energy Discharges 3 | . 3 . Data Loss (minor) 2 | . 1 1 Data Loss (major) 1 | . 1 . Alerts 1 | . 1 . Overload Shots . | . . . Overflow Damage 317 | . 316 1 Projectiles . | . . . Explosions 103 | . 102 1 Melee 214 | . 214 . Knockbacks 1 | . 1 . Impact 1 | . 1 . Kinetic . | . . . Secondary . | . . . Self-Inflicted Damage 171 | . 101 70 Shots 3 | . 1 2 Rammed . | . . . Targets Rammed . | . . . Kicked . | . . . Crushed . | . . . Highest Temperature 523 | 78 523 . Average Temperature 148 | 24 170 . Received Heat Transfer 138 | . 138 . Effects 11 | . 11 . Shutdowns 3 | . 3 . Energy Bleed 2 | . 2 . Interference 2 | . 2 . Matter Decay 2 | . 2 . Damage (minor) 1 | . 1 . Damage (core) 1 | . 1 . Siege Activations . | . . . Martial Activations . | . . . Shielding Activations . | . . . Robots Disrupted . | . . . Combat Hostiles . | . . . Robots Corrupted 5 | . 5 . Combat Hostiles 2 | . 2 . Parts Fried 5 | . 5 . Impact Corruptions 12 | . 12 . Robots Melted . | . . . Combat Hostiles . | . . . Parts Melted 5 | 1 4 . Heat Transferred 1517 | 333 1184 . Parts Sabotaged . | . . . Parts Stolen . | . . . Parts Stripped . | . . . Power Chain Reactions . | . . . Alert | -11 -10 -10 ------- Run | Yrd Mat Min Maximum Alert Level 1 | . 1 . Low Security (%) 94 | 100 93 100 Level 1 5 | . 6 . Level 2 . | . . . Level 3 . | . . . Level 4 . | . . . Level 5 . | . . . High Security . | . . . Max Security . | . . . Peak Influence 253 | 5 253 100 Initial 84 | . . 84 Average 52 | . 56 85 Influence Increases 552 | 20 506 26 Destroy 0b10 Robot/C 280 | . 280 . Destroy 0b10 Robot/NC 90 | 20 65 5 Destroy Leader 66 | . 66 . Successful Hack 36 | . 36 . Disable Machine 45 | . 45 . Destroy Structure 35 | . 14 21 Influence Decreases 492 | 20 288 184 Entered New Map 134 | . . 134 Time Decay 288 | 20 248 20 Lost Part 70 | . 40 30 Squads Dispatched 2 | . 2 . Investigation . | . . . Extermination . | . . . Reinforcement 2 | . 2 . Assault . | . . . Garrison . | . . . Intercept . | . . . Searches Triggered . | . . . Construction Impeded . | . . . Haulers Reinforced . | . . . Active Scanning Responses . | . . . Cargo Convoy Interrupts . | . . . Stealth | -11 -10 -10 --------- Run | Yrd Mat Min Distress Signals . | . . . Communications Jammed . | . . . Distress Signals . | . . . Times Spotted 29 | . 20 9 Peak Tracking Total 7 | . 4 7 Tactical Retreats 1 | . . 1 Traps | -11 -10 -10 ------- Run | Yrd Mat Min Traps Triggered 2 | . 2 . Indirectly . | . . . Trap Hack Attempts . | . . . Triggered . | . . . Disarmed . | . . . Reprogrammed . | . . . Reused . | . . . Traps Extracted . | . . . Installed . | . . . Triggered . | . . . Machines | -11 -10 -10 ---------- Run | Yrd Mat Min Machines Disabled 3 | . 3 . Max in Single Turn 1 | . 1 . Machines Repaired . | . . . Machines Dismantled . | . . . Machines Sabotaged . | . . . Overloaded Fab Kills . | . . . Hacking | -11 -10 -10 --------- Run | Yrd Mat Min Machines Accessed 6 | . 6 . Terminals 5 | . 5 . Fabricators . | . . . Repair Stations . | . . . Recycling Units 1 | . 1 . Scanalyzers . | . . . Garrison Access . | . . . Total Hacks 18 | . 18 . Successful 10 | . 10 . Failed 8 | . 8 . Catastrophic 1 | . 1 . Database Lockouts . | . . . Manual 15 | . 15 . Terminals 16 | . 16 . Fabricators . | . . . Repair Stations . | . . . Recycling Units 2 | . 2 . Scanalyzers . | . . . Garrison Access . | . . . Terminal Hacks 7 | . 7 . Part Schematic 2 | . 2 . Robot Analysis 1 | . 1 . Terminal Index 1 | . 1 . Hauler Manifests 1 | . 1 . Registered Components 1 | . 1 . Zone Layout 1 | . 1 . Fabricator Hacks . | . . . Repair Station Hacks . | . . . Recycling Unit Hacks 1 | . 1 . Retrieve Components 1 | . 1 . Scanalyzer . | . . . Garrison Access Hacks . | . . . Unauthorized Hacks 2 | . 2 . Terminals 2 | . 2 . Botnet 2 | . 2 . Fabricators . | . . . Repair Stations . | . . . Recycling Units . | . . . Scanalyzers . | . . . Garrison Access . | . . . Data Cores Recovered . | . . . Used . | . . . Hacking Detections 3 | . 3 . Full Trace Events 1 | . 1 . Feedback Events . | . . . Feedback Blocked . | . . . Robot Schematics Acquired . | . . . Robots Built . | . . . Authchips . | . . . Time . | . . . Total Robot Build Rating . | . . . Part Schematics Acquired 2 | . 2 . Parts Built . | . . . Authchips . | . . . Time . | . . . Total Part Build Rating . | . . . Part Studies Acquired . | . . . Parts Repaired . | . . . Time . | . . . Parts Recycled . | . . . Recycled Matter . | . . . Retrieved Matter . | . . . Retrieved Components 9 | . 9 . Parts Scanalyzed . | . . . Part Schematics Acquired . | . . . Parts Damaged . | . . . Bothacking | -11 -10 -10 ------------ Run | Yrd Mat Min Used RIF Installer . | . . . Robots Hacked . | . . . Non-combat . | . . . Combat . | . . . Robot Hacks Applied . | . . . Relay Couplers Released . | . . . Fabnet Peak Effective % . | . . . Robots Rewired . | . . . Allies Hacked . | . . . Hacks Repelled . | . . . Allies | -11 -10 -10 -------- Run | Yrd Mat Min Total Allies . | . . . Largest Group . | . . . Highest-Rated Group . | . . . Highest-Rated Ally . | . . . Total Orders . | . . . Ally Attacks . | . . . Total Damage . | . . . Kills . | . . . Allies Corrupted . | . . . Allies Melted . | . . . Intel | -11 -10 -10 ------- Run | Yrd Mat Min Active Infowar (turns) 200 | 50 150 . Sensors 15 | . 15 . Structural 95 | . 95 . Seismic 90 | 50 40 . Robot Analysis Total 1 | . 1 . Derelict Logs Recovered . | . . . Drone Launches . | . . . Drone Recoveries . | . . . Exploration | -11 -10 -10 ------------- Run | Yrd Mat Min Turns Passed 1106 | 116 941 49 Spaces Moved 644 | 86 530 28 Core 14 | 14 . . Treads . | . . . Legs . | . . . Wheels 630 | 72 530 28 Hover . | . . . Flight . | . . . Fastest Speed 50 | 50 90 140 Average Speed 121 | 83 126 142 Slowest Speed 200 | 90 200 200 Overloaded Moves . | . . . Propulsion Burnouts . | . . . Robots Hopped . | . . . Potential Cave-ins . | . . . Cave-ins Triggered . | . . . Exploration Rate (%) 33 | 5 79 16 Regions Visited 2 Branch Regions 1 Pre-discovered Areas . | . . . Known Exits Taken 1 | . 1 . Unknown Exits Taken 1 | 1 . . Scrap Searched . | . . . Spaces Dug . | . . . Terrain Destroyed 43 | . 16 27 Melee . | . . . Projectile 2 | . 2 . AOE 41 | . 14 27 Terrain Rammed . | . . . Walls Destroyed . | . . . Machines Disabled . | . . . Actions | -11 -10 -10 --------- Run | Yrd Mat Min Total 843 | 113 697 33 Wait 49 | . 49 . Move 642 | 85 529 28 Hop . | . . . Pick Up 36 | 12 24 . Fast Attach 1 | . 1 . Attach 18 | 7 10 1 Detach 4 | . 4 . Swap 17 | 1 16 . Drop 9 | . 9 . Fire 46 | 8 36 2 Melee 21 | . 19 2 Ram . | . . . Kick . | . . . Crush . | . . . Escape Stasis . | . . . Rewire . | . . . Trap . | . . . Miscellaneous . | . . . Route ------- -11/Scrapyard -10/Materials (discovered 4 exits: *Mat x2 / *Min x2) -10/Mines History --------- Turn | Location | Event 8 | -11/Scrapyard | Discovered new exit (range 15) 117 | -11/Scrapyard | Entered Materials 281 | -10/Materials | Discovered new exit (range 16) 311 | -10/Materials | Identified exit to Mines 337 | -10/Materials | Build established: Mutant 443 | -10/Materials | Discovered new exit (range 11) 468 | -10/Materials | Identified exit to Materials 605 | -10/Materials | Discovered exit to Mines (range 8) 883 | -10/Materials | Discovered exit to Materials (range 16) 1035 | -10/Materials | Lost 3 parts (1p2n) 1058 | -10/Materials | Entered Mines 1059 | -10/Mines | Assembled infested the area 1091 | -10/Mines | Core integrity fell below 50% 1107 | -10/Mines | Core integrity fell below 20% 1107 | -10/Mines | Destroyed by D-53 Grenadier with Mini Grenade Launcher Last Messages --------------- 01085_ System corrupted: Component data lost. 01090_ as-97616 destroyed. 01094_ Knocked back. 01096_ C-45 Heavy ARC bursts open, deploying its payload. 01096_ D-53 Grenadier unfolds itself. 01096_ Wheel destroyed. 01096_ as-78483 destroyed. 01096_ as-94266 destroyed. 01096_ as-09921 destroyed. 01096_ as-40843 destroyed. 01097_ as-69677 destroyed. 01099_ Lgt. Ion Engine destroyed. 01100_ as-00760 destroyed. 01102_ The unstable cave ceiling collapses. 01102_ U-05 Engineer builds a Wall. 01104_ The unstable cave ceiling collapses. 01104_ U-05 Engineer lays Concrete. 01105_ Wheel destroyed. 01106_ U-05 Engineer lays Concrete. Map ----- +----------------------------------------------------+ | ????????????????????????????????????????????? | | ????????????????????????????????????????????? | | ????????????????????????????????????????????? | | ????????????????????????????????????????????? | | ??????????????????#########?????????????????? | | ??????????????????# #?????????????????? | | ??????????????????# #?????????????????? | | ??????????????##### #?????????????????? | | ??????????????# #?????????????????? | | ??????????????# #?????????????????? | | ??????????????# #?????????????????? | | ??????????????##### #????????##???????? | | ??????????????????## ######??????? ##??????? | | ???????????????????# ### #??##?? #??????? | | ????????????######## ### #?? #??????? | | ???????# = ## #???????? | | ????????????########## # #????????? | | ????????????????????# # #r #?????????? | | ??????????????????##### #?????????? | | ?????????????????## ## u#??????????? | | ?????????????????# #??????????? | | ?????????????????# # u#??????????? | | ????????????????## d #??????????? | | ????????????????# d % #??????????? | | ??????# ### ???? | | ??????# @ ? | | ??????????## ######### ?? | | ???????????## ####????????????? | | ????????????## ## #####???????????????? | | ?????????????##??## # #???????????????????? | | ??????????????????#######???????????????????? | | ????????????????????????????????????????????? | | ????????????????????????????????????????????? | | ????????????????????????????????????????????? | | ????????????????????????????????????????????? | | ????????????????????????????????????????????? | | ????????????????????????????????????????????? | | ????????????????????????????????????????????? | | | | | | | | | | | | | | | | | | | | | | | | | +----------------------------------------------------+ Best States ------------- Heat Dissipation 25 Energy Generation 10 Energy Capacity 250 Matter Stores 300 Matter Capacity 300 Sight Range 16 Robot Scan Range 14 Terrain Scan Density 10 Evasion (%) 50 Item Schematics ----------------- Signal Interpreter | -10/Materials | Hacked Datajack | -10/Materials | Hacked Robot Schematics ------------------ None Fabricated ------------ Nothing Repaired ---------- Nothing Studied --------- None Alien Tech Used ----------------- None Achievements -------------- Well Done Challenges ------------ None Game ------ Seed XenonTerrorHammer Manual? 0 Play Time 00:13:36 Cumulative 39.2 hours Start 2025.10.29 @ 16:20:32 End 2025.10.29 @ 16:43:52 Sessions 1 Manual Loads 0 Difficulty Rogue Special Mode None Game No. 41 Rogue 31 Adventurer 10 Explorer 0 Win Type - Total 0 Types 0/0/0/0/0/0/0/0/0/0 Lore% 37 Gallery% 30 Achievement% 23 Wizard Run 0 Options --------- Layout 1 ASCII 0 Keyboard 0 Movement Mouse Keybinds 0 Fullscreen 2 Font 32/Smallcaps Map View 50x35 Zoom Use 0% Tactical HUD 1 Map Filters NONE Filters NONE Steam 1 RUN: b44102c9-7ab3-4b62-bbc8-8c4a50dc243c